[Event "Titled Tuesday Blitz October 11 Early 2022"]
[White "Baches Garcia, Guillermo"]
[Black "Fajdetic, Hrvoje"]
[WhiteFideId "2209764"]
[BlackFideId "14501945"]
[WhiteElo "2455"]
[BlackElo "2172"]
[Result "1-0"]
[Round "05"]
[TimeControl "180+1"]
[Date "2022.10.12"]
[WhiteClock "0:02:13"]
[BlackClock "0:00:05"]

1. e4 {[%clk 0:03:00]}  c5 {[%clk 0:02:38]} 2. Nf3 {[%clk 0:03:00]}  a6 {[%clk 0:02:37]} 3. c4 {[%clk 0:02:59]}  Nc6 {[%clk 0:02:35]} 4. Nc3 {[%clk 0:02:59]}  g6 {[%clk 0:02:34]} 5. d4 {[%clk 0:02:58]}  cxd4 {[%clk 0:02:35]} 6. Nxd4 {[%clk 0:02:58]}  Bg7 {[%clk 0:02:36]} 7. Be3 {[%clk 0:02:58]}  d6 {[%clk 0:02:26]} 8. f3 {[%clk 0:02:51]}  Qb6 {[%clk 0:01:30]} 9. Nf5 {[%clk 0:02:42]}  Qxb2 {[%clk 0:01:30]} 10. Nxg7+ {[%clk 0:02:38]}  Kf8 {[%clk 0:01:30]} 11. Nd5 {[%clk 0:02:30]}  Kxg7 {[%clk 0:01:19]} 12. Rb1 {[%clk 0:02:27]}  Qxa2 {[%clk 0:01:11]} 13. Ra1 {[%clk 0:02:20]}  Qb2 {[%clk 0:01:03]} 14. Bd2 {[%clk 0:02:17]}  e5 {[%clk 0:00:06]} 15. Bc3 {[%clk 0:02:16]}  Qxa1 {[%clk 0:00:04]} 16. Qxa1 {[%clk 0:02:13]}  Nge7 {[%clk 0:00:05]} 1-0


[Site "https://www.chess.com"]

[Event "Titled Tuesday Blitz October 11 Early 2022"]
[White "Bacrot, Etienne"]
[Black "Bortnyk, Olexandr"]
[WhiteFideId "605506"]
[BlackFideId "14120828"]
[WhiteElo "2666"]
[BlackElo "2723"]
[Result "0-1"]
[Round "05"]
[TimeControl "180+1"]
[Date "2022.10.11"]
[WhiteClock "0:00:10"]
[BlackClock "0:00:25"]

1. e4 {[%clk 0:03:00]}  Nf6 {[%clk 0:02:51]} 2. e5 {[%clk 0:03:00]}  Nd5 {[%clk 0:02:51]} 3. c4 {[%clk 0:03:00]}  Nb6 {[%clk 0:02:51]} 4. Nc3 {[%clk 0:03:00]}  d6 {[%clk 0:02:51]} 5. exd6 {[%clk 0:03:00]}  exd6 {[%clk 0:02:51]} 6. d4 {[%clk 0:03:00]}  Be7 {[%clk 0:02:52]} 7. Nf3 {[%clk 0:03:01]}  O-O {[%clk 0:02:52]} 8. Bd3 {[%clk 0:02:59]}  Bg4 {[%clk 0:02:51]} 9. h3 {[%clk 0:02:58]}  Bh5 {[%clk 0:02:50]} 10. O-O {[%clk 0:02:57]}  Nc6 {[%clk 0:02:44]} 11. g4 {[%clk 0:02:51]}  Bg6 {[%clk 0:02:43]} 12. Bxg6 {[%clk 0:02:43]}  fxg6 {[%clk 0:02:20]} 13. d5 {[%clk 0:02:42]}  Ne5 {[%clk 0:02:20]} 14. Nxe5 {[%clk 0:02:42]}  dxe5 {[%clk 0:02:20]} 15. Qe2 {[%clk 0:02:26]}  Bc5 {[%clk 0:02:16]} 16. Be3 {[%clk 0:02:15]}  Bd4 {[%clk 0:01:56]} 17. Rad1 {[%clk 0:02:14]}  Bxc3 {[%clk 0:01:47]} 18. bxc3 {[%clk 0:02:14]}  Qh4 {[%clk 0:01:45]} 19. Kg2 {[%clk 0:01:54]}  e4 {[%clk 0:01:37]} 20. c5 {[%clk 0:01:38]}  Rf3 {[%clk 0:01:33]} 21. Rh1 {[%clk 0:01:37]}  Nd7 {[%clk 0:01:28]} 22. Qc4 {[%clk 0:01:32]}  Raf8 {[%clk 0:00:55]} 23. Rd2 {[%clk 0:01:28]}  Rxe3 {[%clk 0:00:39]} 24. d6+ {[%clk 0:01:11]}  Kh8 {[%clk 0:00:39]} 25. fxe3 {[%clk 0:00:28]}  Rf3 {[%clk 0:00:38]} 26. Rf1 {[%clk 0:00:17]}  Rxh3 {[%clk 0:00:25]} 27. Kg1 {[%clk 0:00:10]}  Rh1+ {[%clk 0:00:25]} 0-1


[Site "https://www.chess.com"]

[Event "Titled Tuesday Blitz October 11 Early 2022"]
[White "Biriukov, Ilja"]
[Black "Agasarov, Benik"]
[WhiteFideId "4113373"]
[BlackFideId "13314823"]
[WhiteElo "2426"]
[BlackElo "2152"]
[Result "0-1"]
[Round "05"]
[TimeControl "180+1"]
[Date "2022.10.12"]
[WhiteClock "0:00:43"]
[BlackClock "0:00:42"]

1. e4 {[%clk 0:02:21]}  c5 {[%clk 0:02:56]} 2. Nc3 {[%clk 0:02:14]}  d6 {[%clk 0:02:54]} 3. Nf3 {[%clk 0:02:06]}  a6 {[%clk 0:02:50]} 4. d4 {[%clk 0:01:58]}  cxd4 {[%clk 0:02:51]} 5. Nxd4 {[%clk 0:01:57]}  Nf6 {[%clk 0:02:51]} 6. Be3 {[%clk 0:01:40]}  e5 {[%clk 0:02:35]} 7. Nb3 {[%clk 0:01:38]}  Be6 {[%clk 0:02:33]} 8. Qd2 {[%clk 0:01:37]}  Be7 {[%clk 0:01:50]} 9. O-O-O {[%clk 0:01:36]}  Ng4 {[%clk 0:01:43]} 10. Kb1 {[%clk 0:01:31]}  Nxe3 {[%clk 0:01:33]} 11. Qxe3 {[%clk 0:01:32]}  Nd7 {[%clk 0:01:23]} 12. f3 {[%clk 0:01:29]}  Rc8 {[%clk 0:01:22]} 13. g4 {[%clk 0:01:26]}  h5 {[%clk 0:01:15]} 14. Be2 {[%clk 0:01:23]}  hxg4 {[%clk 0:01:15]} 15. fxg4 {[%clk 0:01:24]}  Nb6 {[%clk 0:01:11]} 16. h4 {[%clk 0:01:21]}  Nc4 {[%clk 0:01:10]} 17. Bxc4 {[%clk 0:01:20]}  Rxc4 {[%clk 0:01:10]} 18. g5 {[%clk 0:01:19]}  b5 {[%clk 0:00:58]} 19. Nd5 {[%clk 0:01:16]}  Bxd5 {[%clk 0:00:56]} 20. exd5 {[%clk 0:01:17]}  Rcxh4 {[%clk 0:00:55]} 21. Rxh4 {[%clk 0:01:12]}  Rxh4 {[%clk 0:00:56]} 22. g6 {[%clk 0:01:11]}  fxg6 {[%clk 0:00:52]} 23. Qg3 {[%clk 0:01:08]}  Rh6 {[%clk 0:00:49]} 24. Rf1 {[%clk 0:01:05]}  Bf6 {[%clk 0:00:49]} 25. Qg4 {[%clk 0:01:03]}  Qd7 {[%clk 0:00:48]} 26. Qf3 {[%clk 0:00:58]}  Kf7 {[%clk 0:00:46]} 27. Na5 {[%clk 0:00:57]}  Kg8 {[%clk 0:00:45]} 28. Nc6 {[%clk 0:00:57]}  Qf5 {[%clk 0:00:45]} 29. Qe2 {[%clk 0:00:53]}  Qh5 {[%clk 0:00:43]} 30. Qd3 {[%clk 0:00:46]}  Qh3 {[%clk 0:00:43]} 31. Qe3 {[%clk 0:00:43]}  Qxf1+ {[%clk 0:00:42]} 0-1


[Site "https://www.chess.com"]

[Event "Titled Tuesday Blitz October 11 Early 2022"]
[White "Boraso, Alessio"]
[Black "Ciuffoletti, Paolo"]
[WhiteFideId "848077"]
[BlackFideId "807630"]
[WhiteElo "2286"]
[BlackElo "2143"]
[Result "1-0"]
[Round "05"]
[TimeControl "180+1"]
[Date "2022.10.12"]
[WhiteClock "0:00:05"]
[BlackClock "0:00:14"]

1. e4 {[%clk 0:00:36]}  c5 {[%clk 0:02:57]} 2. Nf3 {[%clk 0:00:35]}  Nc6 {[%clk 0:02:58]} 3. Nc3 {[%clk 0:00:35]}  Nf6 {[%clk 0:02:57]} 4. Bb5 {[%clk 0:00:32]}  a6 {[%clk 0:02:43]} 5. Bxc6 {[%clk 0:00:32]}  dxc6 {[%clk 0:02:42]} 6. d3 {[%clk 0:00:33]}  g6 {[%clk 0:02:42]} 7. Be3 {[%clk 0:00:33]}  Nd7 {[%clk 0:02:33]} 8. Qd2 {[%clk 0:00:33]}  Bg7 {[%clk 0:02:32]} 9. h4 {[%clk 0:00:34]}  h5 {[%clk 0:02:31]} 10. Ng5 {[%clk 0:00:33]}  Qa5 {[%clk 0:02:18]} 11. f4 {[%clk 0:00:31]}  Bd4 {[%clk 0:02:04]} 12. O-O {[%clk 0:00:31]}  Nf6 {[%clk 0:02:03]} 13. e5 {[%clk 0:00:28]}  Ng4 {[%clk 0:02:00]} 14. Bxd4 {[%clk 0:00:28]}  cxd4 {[%clk 0:01:59]} 15. Nce4 {[%clk 0:00:28]}  Qxd2 {[%clk 0:01:58]} 16. Nxd2 {[%clk 0:00:29]}  Ne3 {[%clk 0:01:54]} 17. Rfc1 {[%clk 0:00:30]}  Bg4 {[%clk 0:01:47]} 18. Nf1 {[%clk 0:00:30]}  Nf5 {[%clk 0:01:44]} 19. c3 {[%clk 0:00:27]}  dxc3 {[%clk 0:01:43]} 20. bxc3 {[%clk 0:00:27]}  Nxh4 {[%clk 0:01:42]} 21. Ne3 {[%clk 0:00:25]}  Nf5 {[%clk 0:01:39]} 22. Nxg4 {[%clk 0:00:18]}  hxg4 {[%clk 0:01:38]} 23. Kf2 {[%clk 0:00:19]}  O-O {[%clk 0:01:15]} 24. Rab1 {[%clk 0:00:15]}  b5 {[%clk 0:01:12]} 25. d4 {[%clk 0:00:15]}  Rac8 {[%clk 0:01:09]} 26. Ne4 {[%clk 0:00:15]}  Kg7 {[%clk 0:01:05]} 27. a4 {[%clk 0:00:16]}  Rb8 {[%clk 0:01:03]} 28. a5 {[%clk 0:00:16]}  Rfc8 {[%clk 0:00:58]} 29. Nc5 {[%clk 0:00:16]}  e6 {[%clk 0:00:57]} 30. Ra1 {[%clk 0:00:13]}  Ra8 {[%clk 0:00:56]} 31. Nd7 {[%clk 0:00:13]}  Rc7 {[%clk 0:00:53]} 32. Nc5 {[%clk 0:00:11]}  Ne7 {[%clk 0:00:50]} 33. Kg3 {[%clk 0:00:09]}  Nd5 {[%clk 0:00:49]} 34. Kxg4 {[%clk 0:00:07]}  Ne3+ {[%clk 0:00:46]} 35. Kf3 {[%clk 0:00:06]}  Nd5 {[%clk 0:00:43]} 36. g4 {[%clk 0:00:04]}  Rcc8 {[%clk 0:00:40]} 37. Ne4 {[%clk 0:00:05]}  Rh8 {[%clk 0:00:40]} 38. Rh1 {[%clk 0:00:05]}  Rab8 {[%clk 0:00:38]} 39. Rxh8 {[%clk 0:00:05]}  Rxh8 {[%clk 0:00:37]} 40. Kg3 {[%clk 0:00:05]}  Rc8 {[%clk 0:00:34]} 41. Ra3 {[%clk 0:00:05]}  f5 {[%clk 0:00:30]} 42. Nc5 {[%clk 0:00:06]}  Kf7 {[%clk 0:00:25]} 43. Nxa6 {[%clk 0:00:05]}  Ra8 {[%clk 0:00:25]} 44. Nb4 {[%clk 0:00:04]}  Ne3 {[%clk 0:00:23]} 45. gxf5 {[%clk 0:00:03]}  gxf5 {[%clk 0:00:22]} 46. Nxc6 {[%clk 0:00:03]}  Nc4 {[%clk 0:00:22]} 47. Ra2 {[%clk 0:00:02]}  Ra6 {[%clk 0:00:22]} 48. Nb4 {[%clk 0:00:01]}  Rxa5 {[%clk 0:00:23]} 49. Rxa5 {[%clk 0:00:01]}  Nxa5 {[%clk 0:00:23]} 50. Kf3 {[%clk 0:00:01]}  Nb3 {[%clk 0:00:23]} 51. Ke2 {[%clk 0:00:02]}  Na5 {[%clk 0:00:22]} 52. Kd3 {[%clk 0:00:03]}  Nc4 {[%clk 0:00:21]} 53. Nc6 {[%clk 0:00:04]}  Ke8 {[%clk 0:00:19]} 54. Na7 {[%clk 0:00:04]}  Na3 {[%clk 0:00:18]} 55. d5 {[%clk 0:00:04]}  Kd7 {[%clk 0:00:18]} 56. d6 {[%clk 0:00:02]}  Kd8 {[%clk 0:00:16]} 57. Kd4 {[%clk 0:00:03]}  Kd7 {[%clk 0:00:16]} 58. Kc5 {[%clk 0:00:03]}  Nb1 {[%clk 0:00:15]} 59. Nxb5 {[%clk 0:00:03]}  Nd2 {[%clk 0:00:15]} 60. c4 {[%clk 0:00:04]}  Ne4+ {[%clk 0:00:15]} 61. Kb6 {[%clk 0:00:04]}  Nf2 {[%clk 0:00:15]} 62. c5 {[%clk 0:00:05]}  Nd3 {[%clk 0:00:15]} 63. c6+ {[%clk 0:00:05]}  Kd8 {[%clk 0:00:14]} 64. c7+ {[%clk 0:00:04]}  Kd7 {[%clk 0:00:15]} 65. Na7 {[%clk 0:00:04]}  Ke8 {[%clk 0:00:14]} 66. c8=Q+ {[%clk 0:00:05]} 1-0


[Site "https://www.chess.com"]

[Event "Titled Tuesday Blitz October 11 Early 2022"]
[White "Borgaonkar Akshay"]
[Black "Wirig, Anthony"]
[WhiteFideId "25639110"]
[BlackFideId "615013"]
[WhiteElo "2063"]
[BlackElo "2474"]
[Result "1-0"]
[Round "05"]
[TimeControl "180+1"]
[Date "2022.10.12"]
[WhiteClock "0:00:44"]
[BlackClock "0:00:04"]

1. Nf3 {[%clk 0:03:00]}  c5 {[%clk 0:02:59]} 2. e4 {[%clk 0:02:59]}  g6 {[%clk 0:03:00]} 3. Bc4 {[%clk 0:02:58]}  Bg7 {[%clk 0:03:00]} 4. c3 {[%clk 0:02:57]}  e6 {[%clk 0:02:51]} 5. d4 {[%clk 0:02:57]}  cxd4 {[%clk 0:02:39]} 6. Nxd4 {[%clk 0:02:57]}  a6 {[%clk 0:02:37]} 7. O-O {[%clk 0:02:56]}  Qc7 {[%clk 0:02:25]} 8. Bb3 {[%clk 0:02:53]}  Ne7 {[%clk 0:02:19]} 9. Be3 {[%clk 0:02:52]}  d6 {[%clk 0:02:16]} 10. Nd2 {[%clk 0:02:52]}  O-O {[%clk 0:02:14]} 11. f4 {[%clk 0:02:49]}  b6 {[%clk 0:02:13]} 12. f5 {[%clk 0:02:47]}  exf5 {[%clk 0:02:08]} 13. exf5 {[%clk 0:02:46]}  Nxf5 {[%clk 0:02:08]} 14. Nxf5 {[%clk 0:02:13]}  Bxf5 {[%clk 0:02:08]} 15. Rxf5 {[%clk 0:02:13]}  gxf5 {[%clk 0:02:09]} 16. Qf3 {[%clk 0:02:14]}  Nc6 {[%clk 0:01:55]} 17. Qxf5 {[%clk 0:02:10]}  Rfe8 {[%clk 0:01:18]} 18. Bf4 {[%clk 0:01:58]}  Ne5 {[%clk 0:01:11]} 19. Rf1 {[%clk 0:01:52]}  Ra7 {[%clk 0:00:56]} 20. Ne4 {[%clk 0:01:34]}  Kh8 {[%clk 0:00:29]} 21. Ng5 {[%clk 0:01:31]}  Qc5+ {[%clk 0:00:16]} 22. Kh1 {[%clk 0:01:28]}  Kg8 {[%clk 0:00:12]} 23. Qxh7+ {[%clk 0:01:03]}  Kf8 {[%clk 0:00:11]} 24. Bxe5 {[%clk 0:01:04]}  Rxe5 {[%clk 0:00:06]} 25. Nxf7 {[%clk 0:01:03]}  Qf2 {[%clk 0:00:05]} 26. Qg8+ {[%clk 0:00:55]}  Kxg8 {[%clk 0:00:04]} 27. Nxe5+ {[%clk 0:00:55]}  Kh8 {[%clk 0:00:04]} 28. Ng6+ {[%clk 0:00:44]}  Kh7 {[%clk 0:00:03]} 29. Rxf2 {[%clk 0:00:45]}  Kxg6 {[%clk 0:00:04]} 30. Bc2+ {[%clk 0:00:45]}  Kg5 {[%clk 0:00:04]} 31. Rf5+ {[%clk 0:00:45]}  Kh6 {[%clk 0:00:04]} 32. g4 {[%clk 0:00:45]}  Be5 {[%clk 0:00:04]} 33. Rh5+ {[%clk 0:00:44]} 1-0


[Site "https://www.chess.com"]

[Event "Titled Tuesday Blitz October 11 Early 2022"]
[White "Carbone, Diego"]
[Black "Aldokhin, Ivan"]
[WhiteFideId "3002179"]
[BlackFideId "24115720"]
[WhiteElo "2243"]
[BlackElo "2313"]
[Result "0-1"]
[Round "05"]
[TimeControl "180+1"]
[Date "2022.10.12"]
[WhiteClock "0:00:58"]
[BlackClock "0:01:21"]

1. d4 {[%clk 0:02:56]}  Nf6 {[%clk 0:02:59]} 2. c4 {[%clk 0:02:56]}  g6 {[%clk 0:03:00]} 3. g3 {[%clk 0:02:56]}  Bg7 {[%clk 0:03:01]} 4. Bg2 {[%clk 0:02:57]}  d6 {[%clk 0:03:01]} 5. Nc3 {[%clk 0:02:57]}  O-O {[%clk 0:03:02]} 6. Nf3 {[%clk 0:02:58]}  Nc6 {[%clk 0:03:03]} 7. O-O {[%clk 0:02:59]}  Bf5 {[%clk 0:03:03]} 8. d5 {[%clk 0:02:58]}  Na5 {[%clk 0:03:03]} 9. Nd2 {[%clk 0:02:58]}  c5 {[%clk 0:03:02]} 10. e4 {[%clk 0:02:59]}  Bd7 {[%clk 0:03:00]} 11. Qc2 {[%clk 0:02:59]}  e6 {[%clk 0:03:01]} 12. b3 {[%clk 0:02:33]}  exd5 {[%clk 0:02:58]} 13. cxd5 {[%clk 0:02:34]}  b5 {[%clk 0:02:56]} 14. Bb2 {[%clk 0:02:33]}  Rc8 {[%clk 0:02:49]} 15. Rfe1 {[%clk 0:02:13]}  Nb7 {[%clk 0:02:18]} 16. Nd1 {[%clk 0:02:03]}  Re8 {[%clk 0:02:08]} 17. Ne3 {[%clk 0:02:00]}  a5 {[%clk 0:01:59]} 18. a4 {[%clk 0:01:59]}  c4 {[%clk 0:01:53]} 19. bxc4 {[%clk 0:01:54]}  bxa4 {[%clk 0:01:48]} 20. Bd4 {[%clk 0:01:44]}  Nc5 {[%clk 0:01:45]} 21. Reb1 {[%clk 0:01:36]}  Ng4 {[%clk 0:01:38]} 22. Bxg7 {[%clk 0:01:23]}  Kxg7 {[%clk 0:01:37]} 23. Nxg4 {[%clk 0:01:18]}  Bxg4 {[%clk 0:01:37]} 24. Nf1 {[%clk 0:01:15]}  Qf6 {[%clk 0:01:32]} 25. Ne3 {[%clk 0:01:14]}  Bf3 {[%clk 0:01:27]} 26. Rb5 {[%clk 0:00:58]}  Qxa1+ {[%clk 0:01:21]} 0-1


[Site "https://www.chess.com"]

[Event "Titled Tuesday Blitz October 11 Early 2022"]
[White "Carlsen, Magnus"]
[Black "Gabdrakhmanov, Azat"]
[WhiteFideId "1503014"]
[BlackFideId "34189197"]
[WhiteElo "2830"]
[BlackElo "2233"]
[Result "1-0"]
[Round "05"]
[TimeControl "180+1"]
[Date "2022.10.11"]
[WhiteClock "0:00:08"]
[BlackClock "0:00:01"]

1. g4 {[%clk 0:02:53]}  e5 {[%clk 0:02:48]} 2. c4 {[%clk 0:02:40]}  d6 {[%clk 0:02:45]} 3. e3 {[%clk 0:02:35]}  g6 {[%clk 0:02:38]} 4. h4 {[%clk 0:02:34]}  h5 {[%clk 0:02:36]} 5. g5 {[%clk 0:02:32]}  Bg7 {[%clk 0:02:37]} 6. Nc3 {[%clk 0:02:29]}  Ne7 {[%clk 0:02:37]} 7. Nge2 {[%clk 0:02:28]}  Bg4 {[%clk 0:02:30]} 8. Bg2 {[%clk 0:02:25]}  c6 {[%clk 0:02:30]} 9. d3 {[%clk 0:02:22]}  O-O {[%clk 0:02:29]} 10. b3 {[%clk 0:02:19]}  f6 {[%clk 0:02:23]} 11. gxf6 {[%clk 0:02:19]}  Bxf6 {[%clk 0:02:24]} 12. Ne4 {[%clk 0:02:17]}  Nf5 {[%clk 0:02:11]} 13. f3 {[%clk 0:02:08]}  Nxh4 {[%clk 0:01:40]} 14. fxg4 {[%clk 0:02:06]}  Nxg2+ {[%clk 0:01:40]} 15. Kf2 {[%clk 0:01:59]}  Nh4 {[%clk 0:01:11]} 16. Kg3 {[%clk 0:01:58]}  d5 {[%clk 0:01:05]} 17. Ba3 {[%clk 0:01:20]}  dxe4 {[%clk 0:00:58]} 18. Bxf8 {[%clk 0:01:20]}  Qxf8 {[%clk 0:00:59]} 19. Nc3 {[%clk 0:01:17]}  hxg4 {[%clk 0:00:32]} 20. Qxg4 {[%clk 0:01:10]}  Nf5+ {[%clk 0:00:32]} 21. Kf2 {[%clk 0:01:10]}  Kf7 {[%clk 0:00:12]} 22. Rag1 {[%clk 0:01:07]}  Nd7 {[%clk 0:00:09]} 23. Rh7+ {[%clk 0:01:04]}  Ke6 {[%clk 0:00:09]} 24. dxe4 {[%clk 0:00:56]}  Qb4 {[%clk 0:00:09]} 25. Ne2 {[%clk 0:00:34]}  Rf8 {[%clk 0:00:07]} 26. Rd1 {[%clk 0:00:22]}  Nc5 {[%clk 0:00:07]} 27. Kf3 {[%clk 0:00:14]}  Qb6 {[%clk 0:00:05]} 28. Qxg6 {[%clk 0:00:10]}  Nxe4 {[%clk 0:00:02]} 29. Nd4+ {[%clk 0:00:08]}  Nxd4+ {[%clk 0:00:02]} 30. Kxe4 {[%clk 0:00:07]}  Qc5 {[%clk 0:00:01]} 31. Qg4+ {[%clk 0:00:07]}  Kd6 {[%clk 0:00:01]} 32. Qd7# {[%clk 0:00:08]} 1-0


[Site "https://www.chess.com"]

[Event "Titled Tuesday Blitz October 11 Early 2022"]
[White "Chernomordik, Pavel"]
[Black "Valle Maytin, Luis Enrique"]
[WhiteFideId "2804530"]
[BlackFideId "3503666"]
[WhiteElo "2217"]
[BlackElo "2225"]
[Result "0-1"]
[Round "05"]
[TimeControl "180+1"]
[Date "2022.10.12"]
[WhiteClock "0:00:16"]
[BlackClock "0:00:08"]

1. e4 {[%clk 0:03:00]}  c6 {[%clk 0:02:47]} 2. Nc3 {[%clk 0:02:59]}  d5 {[%clk 0:02:48]} 3. Qf3 {[%clk 0:02:58]}  Nf6 {[%clk 0:02:45]} 4. d3 {[%clk 0:02:57]}  Bg4 {[%clk 0:02:44]} 5. Qg3 {[%clk 0:02:56]}  Qd7 {[%clk 0:02:32]} 6. e5 {[%clk 0:02:39]}  Nh5 {[%clk 0:02:31]} 7. Qh4 {[%clk 0:02:38]}  Qf5 {[%clk 0:02:21]} 8. d4 {[%clk 0:02:26]}  Qg6 {[%clk 0:02:02]} 9. f3 {[%clk 0:02:07]}  Bd7 {[%clk 0:01:56]} 10. g4 {[%clk 0:02:06]}  Qxc2 {[%clk 0:01:36]} 11. Qxh5 {[%clk 0:01:54]}  g6 {[%clk 0:01:31]} 12. Qg5 {[%clk 0:01:52]}  h5 {[%clk 0:01:30]} 13. h3 {[%clk 0:01:42]}  Bh6 {[%clk 0:01:25]} 14. Qxh6 {[%clk 0:01:33]}  Rxh6 {[%clk 0:01:24]} 15. Bxh6 {[%clk 0:01:32]}  Qxb2 {[%clk 0:01:24]} 16. Rc1 {[%clk 0:01:32]}  Na6 {[%clk 0:01:18]} 17. Bxa6 {[%clk 0:01:28]}  bxa6 {[%clk 0:01:17]} 18. Nge2 {[%clk 0:01:28]}  Rc8 {[%clk 0:01:04]} 19. Na4 {[%clk 0:01:21]}  Qb4+ {[%clk 0:01:01]} 20. Nac3 {[%clk 0:01:20]}  c5 {[%clk 0:01:01]} 21. O-O {[%clk 0:01:14]}  cxd4 {[%clk 0:00:55]} 22. Nxd5 {[%clk 0:01:13]}  Qa5 {[%clk 0:00:42]} 23. Ndf4 {[%clk 0:01:06]}  Qxe5 {[%clk 0:00:24]} 24. Rxc8+ {[%clk 0:00:56]}  Bxc8 {[%clk 0:00:23]} 25. Re1 {[%clk 0:00:51]}  Qa5 {[%clk 0:00:13]} 26. gxh5 {[%clk 0:00:40]}  Qxe1+ {[%clk 0:00:12]} 27. Kg2 {[%clk 0:00:39]}  gxh5 {[%clk 0:00:12]} 28. Nxd4 {[%clk 0:00:37]}  e5 {[%clk 0:00:11]} 29. Nd3 {[%clk 0:00:33]}  Bxh3+ {[%clk 0:00:11]} 30. Kh2 {[%clk 0:00:30]}  Qf1 {[%clk 0:00:11]} 31. Kg3 {[%clk 0:00:18]}  Qg2+ {[%clk 0:00:10]} 32. Kh4 {[%clk 0:00:17]}  exd4 {[%clk 0:00:10]} 33. Nf4 {[%clk 0:00:17]}  Qf2+ {[%clk 0:00:08]} 34. Kxh3 {[%clk 0:00:16]}  Qxf3+ {[%clk 0:00:08]} 35. Kh2 {[%clk 0:00:16]}  d3 {[%clk 0:00:08]} 0-1


[Site "https://www.chess.com"]